[Event "75th Argentine Women-ch 2024"]
[Site "Buenos Aires"]
[Date "2024.11.29"]
[Round "9.1"]
[White "Adam, Ernestina"]
[Black "Bossero, Ingrid"]
[Result "1-0"]
[ECO "C54"]
[WhiteElo "2154"]
[BlackElo "1694"]
[Annotator "RC"]
[PlyCount "115"]
[EventDate "2024.11.21"]
[EventType "swiss"]
[EventCountry "ARG"]
[SourceTitle "playchess.com"]
[Source "ChessBase"]
[SourceQuality "1"]
[TimeControl "5400+30"]

1. e4 {[%emt 0:00:03]} e5 {[%emt 0:00:02]} 2. Nf3 {[%emt 0:00:14]} Nc6 {[%emt 0:00:06]} 3. Bc4 {[%emt 0:00:18]} Bc5 {[%emt 0:00:06]} 4. O-O {[%emt 0:00:37]} Nf6 {[%emt 0:00:32]} 5. d3 {[%emt 1:31:48]} O-O {[%emt 1:32:14]} 6. Re1 {[%emt 0:00:00]} d6 {[%emt 0:00:00]} 7. c3 {[%emt 0:00:00]} Bb6 {[%emt 0:00:00]} 8. a4 {[%emt 0:00:00]} a6 {[%emt 0:00:00]} 9. h3 {[%emt 0:02:00]} Be6 {[%emt 0:02:00]} 10. Bxe6 {[%emt 0:00:00]} fxe6 {[%emt 0:00:30]} 11. Nbd2 {[%emt 0:01:00]} Qe8 {[%emt 0:00:30]} 12. Nf1 {[%emt 0:00:00]} Nh5 {[%emt 0:00:30]} 13. Be3 {[%emt 0:00:00]} Bxe3 {[%emt 0:00:00]} 14. fxe3 {[%emt 0:01:30]} Qg6 {[%emt 0:00:00]} 15. Kh2 {[%emt 0:00:30]} Rae8 {[%emt 0:01:30]} 16. b4 {[%emt 0:00:30]} Nf6 {[%emt 0:00:00]} 17. b5 {[%emt 0:00:00]} Nb8 {[%emt 0:01:00]} 18. Qc2 {[%emt 0:00:00]} a5 {[%emt 0:00:30]} 19. N1d2 {[%emt 0:00:00]} b6 {[%emt 0:00:30]} 20. d4 {[%emt 0:00:00]} Nbd7 {[%emt 0:00:00]} 21. Rad1 {[%emt 0:00:00]} Qh6 {[%emt 0:01:00]} 22. Kg1 {[%emt 0:00:00]} g5 {[%emt 0:00:00]} 23. Nh2 {[%emt 0:00:00]} Rf7 {[%emt 0:00:00]} 24. Ndf3 {[%emt 0:00:00]} Rg7 {[%emt 0:00:00]} 25. dxe5 {[%emt 0:00:00]} dxe5 {[%emt 0:00:00]} 26. Ng4 {[%emt 0:00:00]} Nxg4 {[%emt 0:00:00]} 27. hxg4 {[%emt 0:00:00]} Rf7 {[%emt 0:00:23]} 28. Rf1 {[%emt 0:00:00]} Qg7 {[%emt 0:00:18]} 29. Nh2 {[%emt 0:00:00]} Rxf1+ {[%emt 0:00:36]} 30. Nxf1 {[%emt 0:00:00]} Nf6 {[%emt 0:00:17]} 31. Nh2 {[%emt 0:00:00]} Qg6 {[%emt 0:00:16]} 32. c4 {[%emt 0:01:22]} Nxe4 {[%emt 0:01:09]} 33. Nf3 {[%emt 0:00:37]} Nc5 {[%emt 0:03:01]} 34. Qxg6+ {[%emt 0:02:30]} hxg6 {[%emt 0:00:00]} 35. Nxe5 {[%emt 0:01:36]} Kg7 {[%emt 0:00:00]} 36. Nc6 {[%emt 0:01:58]} Rf8 {[%emt 0:00:00]} 37. Ra1 {[%emt 0:00:33]} Rf7 {[%emt 0:00:00]} 38. Ne5 {[%emt 0:00:48]} Re7 {[%emt 0:00:00]} 39. Nf3 {[%emt 0:01:13]} Kh6 {[%emt 0:00:34]} 40. Kf2 {[%emt 0:00:28]} Rd7 {[%emt 0:01:45]} 41. Rh1+ {[%emt 0:00:49]} Kg7 {[%emt 0:00:12]} 42. Nxg5 {[%emt 0:00:16]} Rd2+ {[%emt 0:00:25]} 43. Kf3 {[%emt 0:00:28]} Ra2 {[%emt 0:00:19]} 44. Rh7+ {[%emt 0:00:36]} Kf6 {[%emt 0:00:07]} 45. Ne4+ {[%emt 0:00:33]} Nxe4 {[%emt 0:00:47]} 46. Kxe4 {[%emt 0:00:02]} Rxa4 {[%emt 0:00:13]} 47. Rxc7 {[%emt 0:00:05]} Rb4 {[%emt 0:00:36]} 48. Kd4 {[%emt 0:00:57]} Rb1 {[%emt 0:01:13]} 49. Rc6 {[%emt 0:00:54]} a4 {[%emt 0:00:04]} 50. Rxb6 {[%emt 0:00:09]} a3 {[%emt 0:00:07]} 51. Ra6 {[%emt 0:00:01]} Ra1 {[%emt 0:00:14]} 52. Kc5 {[%emt 0:00:37]} a2 {[%emt 0:00:42]} 53. b6 {[%emt 0:00:27]} Ke5 {[%emt 0:00:24]} 54. b7 {[%emt 0:00:40]} Rb1 {[%emt 0:00:05]} 55. Kc6 {[%emt 0:00:20]} a1=Q {[%emt 0:00:08]} 56. Rxa1 {[%emt 0:00:06]} Rxa1 {[%emt 0:00:05]} 57. b8=Q+ {[%emt 0:00:06]} Ke4 {[%emt 0:00:23]} 58. Qf4+ {[%emt 0:02:49]} 1-0

[Event "75th Argentine Women-ch 2024"]
[Site "Buenos Aires"]
[Date "2024.11.29"]
[Round "9.2"]
[White "Maggiolo, Elisa"]
[Black "Campos, Maria Jose"]
[Result "0-1"]
[ECO "C58"]
[WhiteElo "1922"]
[BlackElo "2272"]
[Annotator "RC"]
[PlyCount "71"]
[EventDate "2024.11.21"]
[EventType "swiss"]
[EventCountry "ARG"]
[SourceTitle "playchess.com"]
[Source "ChessBase"]
[SourceQuality "1"]
[TimeControl "5400+30"]

1. e4 {[%emt 0:00:04]} e5 {[%emt 0:00:33]} 2. Nf3 {[%emt 1:31:26]} Nc6 {[%emt 0:00:44]} 3. Bc4 {[%emt 0:00:00]} Nf6 {[%emt 0:00:42]} 4. Ng5 {[%emt 0:00:00]} d5 {[%emt 0:01:02]} 5. exd5 {[%emt 0:00:00]} Na5 {[%emt 0:00:20]} 6. Bb5+ {[%emt 0:00:00]} c6 {[%emt 0:00:43]} 7. dxc6 {[%emt 0:00:00]} bxc6 {[%emt 0:00:07]} 8. Bd3 {[%emt 0:00:00]} Nd5 {[%emt 0:03:39]} 9. Nf3 {[%emt 0:00:00]} Bd6 {[%emt 0:01:13]} 10. O-O {[%emt 0:00:00]} Nf4 {[%emt 0:01:30]} 11. Re1 {[%emt 0:00:00]} Nxd3 {[%emt 0:01:12]} 12. cxd3 {[%emt 0:00:00]} O-O {[%emt 0:00:56]} 13. Nxe5 {[%emt 0:00:00]} c5 {[%emt 0:02:14]} 14. Nf3 {[%emt 0:00:00]} Nc6 {[%emt 0:02:21]} 15. h3 {[%emt 0:06:30]} Bf5 {[%emt 0:02:18]} 16. Nc3 {[%emt 0:00:30]} Bxd3 {[%emt 1:18:56]} 17. a3 {[%emt 0:00:30]} Rc8 {[%emt 0:00:00]} 18. b3 {[%emt 0:00:30]} Re8 {[%emt 0:00:00]} 19. Bb2 {[%emt 0:00:30]} Nd4 {[%emt 0:01:30]} 20. Re3 {[%emt 0:00:00]} Bc2 {[%emt 0:00:00]} 21. Qf1 {[%emt 0:01:00]} Rxe3 {[%emt 0:00:00]} 22. dxe3 {[%emt 0:00:00]} Nxf3+ {[%emt 0:00:00]} 23. gxf3 {[%emt 0:00:00]} Bxb3 {[%emt 0:00:00]} 24. Ne4 {[%emt 0:00:00]} Bf8 {[%emt 0:00:00]} 25. Qa6 {[%emt 0:00:00]} Rb8 {[%emt 0:03:00]} 26. Qxa7 {[%emt 0:00:00]} Be6 {[%emt 0:00:00]} 27. Be5 {[%emt 0:00:00]} Ra8 {[%emt 0:00:00]} 28. Qb7 {[%emt 0:00:00]} Bxh3 {[%emt 0:00:00]} 29. a4 {[%emt 0:00:00]} Qe8 {[%emt 0:00:00]} 30. a5 {[%emt 0:00:00]} Qxe5 {[%emt 0:00:00]} 31. Qxa8 {[%emt 0:01:42]} Qxa1+ {[%emt 0:00:00]} 32. Kh2 {[%emt 0:00:02]} Qf1 {[%emt 0:00:00]} 33. Kg3 {[%emt 0:00:08]} Qg2+ {[%emt 0:00:00]} 34. Kf4 {[%emt 0:00:04]} Qh2+ {[%emt 0:00:00]} 35. Ng3 {[%emt 0:00:09]} Qxf2 {[%emt 0:00:00]} 36. Ke5 {[%emt 0:05:25]} 0-1

[Event "75th Argentine Women-ch 2024"]
[Site "Buenos Aires"]
[Date "2024.11.29"]
[Round "9.3"]
[White "Bosco, Giuliana"]
[Black "Zuriel, Marisa"]
[Result "1-0"]
[ECO "B81"]
[WhiteElo "1953"]
[BlackElo "2163"]
[Annotator "RC"]
[PlyCount "134"]
[EventDate "2024.11.21"]
[EventType "swiss"]
[EventCountry "ARG"]
[SourceTitle "playchess.com"]
[Source "ChessBase"]
[SourceQuality "1"]
[TimeControl "5400+30"]

1. e4 {[%emt 0:00:02]} c5 {[%emt 0:06:08]} 2. Nf3 {[%emt 0:00:10]} d6 {[%emt 0:00:43]} 3. d4 {[%emt 0:00:08]} cxd4 {[%emt 0:00:06]} 4. Nxd4 {[%emt 0:00:10]} Nf6 {[%emt 0:00:06]} 5. Nc3 {[%emt 0:00:19]} a6 {[%emt 0:00:13]} 6. h3 {[%emt 0:01:23]} e6 {[%emt 0:09:03]} 7. g4 {[%emt 0:01:37]} h6 {[%emt 0:00:08]} 8. f4 {[%emt 0:00:53]} d5 {[%emt 1:18:03]} 9. e5 {[%emt 0:14:33]} Nfd7 {[%emt 0:00:00]} 10. Be3 {[%emt 0:14:56]} Be7 {[%emt 0:00:00]} 11. Qe2 {[%emt 0:07:54]} Bh4+ {[%emt 0:00:00]} 12. Bf2 {[%emt 0:01:49]} Nc6 {[%emt 0:00:00]} 13. O-O-O {[%emt 0:04:09]} Bxf2 {[%emt 0:00:00]} 14. Qxf2 {[%emt 0:04:04]} Qc7 {[%emt 0:00:00]} 15. Bg2 {[%emt 0:05:17]} Nb6 {[%emt 0:00:00]} 16. Rhf1 {[%emt 0:08:28]} Nxd4 {[%emt 0:00:00]} 17. Qxd4 {[%emt 0:00:56]} Bd7 {[%emt 0:00:00]} 18. f5 {[%emt 0:05:36]} Bc6 {[%emt 0:00:00]} 19. fxe6 {[%emt 0:08:52]} fxe6 {[%emt 0:00:00]} 20. Rf2 {[%emt 0:00:38]} O-O-O {[%emt 0:00:00]} 21. Rdf1 {[%emt 0:01:05]} Rd7 {[%emt 0:00:00]} 22. b3 {[%emt 0:02:26]} Kb8 {[%emt 0:00:00]} 23. a4 {[%emt 0:02:01]} Rhd8 {[%emt 0:00:00]} 24. Ne2 {[%emt 0:01:28]} Re7 {[%emt 0:00:00]} 25. Nf4 {[%emt 0:01:21]} Be8 {[%emt 0:00:00]} 26. Re1 {[%emt 0:01:56]} Rc8 {[%emt 0:00:00]} 27. Kb2 {[%emt 0:01:26]} Bxa4 {[%emt 0:00:00]} 28. Ng6 {[%emt 0:02:39]} Ree8 {[%emt 0:00:33]} 29. Qb4 {[%emt 0:03:08]} Bb5 {[%emt 0:01:10]} 30. Bf1 {[%emt 0:01:48]} Bxf1 {[%emt 0:04:46]} 31. Rexf1 {[%emt 0:00:05]} a5 {[%emt 0:00:44]} 32. Qd6 {[%emt 0:02:38]} Qxd6 {[%emt 0:01:41]} 33. exd6 {[%emt 0:00:01]} Rcd8 {[%emt 0:00:04]} 34. Rf7 {[%emt 0:00:46]} Rxd6 {[%emt 0:00:08]} 35. Ne5 {[%emt 0:00:34]} Rg8 {[%emt 0:03:20]} 36. Ra1 {[%emt 0:00:57]} a4 {[%emt 0:00:14]} 37. bxa4 {[%emt 0:00:32]} d4 {[%emt 0:00:29]} 38. a5 {[%emt 0:00:53]} Rd5 {[%emt 0:01:08]} 39. Ng6 {[%emt 0:01:06]} Rb5+ {[%emt 0:00:20]} 40. Kc1 {[%emt 0:00:14]} Nd5 {[%emt 0:00:33]} 41. a6 {[%emt 0:00:30]} bxa6 {[%emt 0:00:32]} 42. Rxa6 {[%emt 0:00:01]} Rc8 {[%emt 0:00:38]} 43. Ne5 {[%emt 0:00:48]} Rc7 {[%emt 0:00:33]} 44. Rf8+ {[%emt 0:00:56]} Kb7 {[%emt 0:00:05]} 45. Raa8 {[%emt 0:00:05]} Rxc2+ {[%emt 0:00:47]} 46. Kxc2 {[%emt 0:00:18]} Nb4+ {[%emt 0:00:01]} 47. Kd2 {[%emt 0:00:16]} Rxe5 {[%emt 0:00:05]} 48. Rfb8+ {[%emt 0:02:38]} Kc6 49. Rxb4 {[%emt 0:00:00]} Re3 {[%emt 0:00:04]} 50. Rxd4 {[%emt 0:00:00]} Rxh3 {[%emt 0:00:01]} 51. Re8 {[%emt 0:00:00]} Kc5 {[%emt 0:00:12]} 52. Re4 {[%emt 0:00:00]} h5 {[%emt 0:01:01]} 53. g5 {[%emt 0:00:27]} Rg3 {[%emt 0:00:12]} 54. R8xe6 {[%emt 0:00:10]} h4 {[%emt 0:00:09]} 55. R6e5+ {[%emt 0:01:03]} Kd6 {[%emt 0:00:01]} 56. Re3 {[%emt 0:00:08]} Rg4 {[%emt 0:00:19]} 57. Rf5 {[%emt 0:00:15]} Rg2+ {[%emt 0:00:17]} 58. Ke1 {[%emt 0:00:33]} Rg4 {[%emt 0:00:15]} 59. Kf2 {[%emt 0:00:16]} Ra4 {[%emt 0:00:58]} 60. Kf3 {[%emt 0:00:15]} Rb4 {[%emt 0:02:27]} 61. Rf4 {[%emt 0:00:12]} Rb5 {[%emt 0:00:23]} 62. Kg4 {[%emt 0:00:07]} h3 {[%emt 0:00:04]} 63. Rxh3 {[%emt 0:00:12]} Re5 {[%emt 0:00:04]} 64. Rh7 {[%emt 0:00:25]} Re7 {[%emt 0:00:28]} 65. Kh5 {[%emt 0:00:12]} Ke5 {[%emt 0:00:10]} 66. Rf1 {[%emt 0:00:21]} Ra7 {[%emt 0:00:03]} 67. Kg6 {[%emt 0:00:17]} Kd5 {[%emt 0:04:31]} 1-0

[Event "75th Argentine Women-ch 2024"]
[Site "Buenos Aires"]
[Date "2024.11.29"]
[Round "9.4"]
[White "Alvarez, Mia Morena"]
[Black "Brizzi, Milagros Tatiana"]
[Result "0-1"]
[ECO "B13"]
[WhiteElo "1653"]
[BlackElo "2114"]
[Annotator "RC"]
[PlyCount "82"]
[EventDate "2024.11.21"]
[EventType "swiss"]
[EventCountry "ARG"]
[SourceTitle "playchess.com"]
[Source "ChessBase"]
[SourceQuality "1"]
[TimeControl "5400+30"]

1. e4 {[%emt 1:31:00]} c6 {[%emt 1:31:00]} 2. d4 {[%emt 0:00:30]} d5 {[%emt 0:00:30]} 3. exd5 {[%emt 0:00:30]} cxd5 {[%emt 0:00:30]} 4. Bd3 {[%emt 0:00:30]} Nc6 {[%emt 0:00:30]} 5. c3 {[%emt 0:00:30]} Nf6 {[%emt 0:00:30]} 6. h3 {[%emt 0:00:30]} e5 {[%emt 0:00:30]} 7. dxe5 {[%emt 0:00:30]} Nxe5 {[%emt 0:00:30]} 8. Nf3 {[%emt 0:00:30]} Nxd3+ {[%emt 0:00:30]} 9. Qxd3 {[%emt 0:00:30]} Be7 {[%emt 0:00:30]} 10. O-O {[%emt 0:00:30]} O-O {[%emt 0:00:30]} 11. Nbd2 {[%emt 0:00:30]} b6 {[%emt 0:00:30]} 12. Nb3 {[%emt 0:00:30]} a5 {[%emt 0:00:30]} 13. Nbd4 {[%emt 0:00:30]} Ba6 {[%emt 0:00:30]} 14. Nb5 {[%emt 0:00:30]} a4 {[%emt 0:00:30]} 15. Rd1 {[%emt 0:00:30]} Qd7 {[%emt 0:00:30]} 16. c4 {[%emt 0:00:30]} Bc5 {[%emt 0:00:30]} 17. Bg5 {[%emt 0:00:30]} Qc6 {[%emt 0:00:30]} 18. Na3 {[%emt 0:00:30]} dxc4 {[%emt 0:00:30]} 19. Qc2 {[%emt 0:00:30]} c3 {[%emt 0:00:30]} 20. Nd4 {[%emt 0:00:30]} Bxd4 {[%emt 0:00:30]} 21. Rxd4 {[%emt 0:00:30]} cxb2 {[%emt 0:00:30]} 22. Qxb2 {[%emt 0:00:30]} Bb7 {[%emt 0:00:30]} 23. f3 {[%emt 0:00:30]} Ra5 {[%emt 0:00:30]} 24. Rc4 {[%emt 0:00:30]} Rc5 {[%emt 0:00:30]} 25. Bxf6 {[%emt 0:00:30]} gxf6 {[%emt 0:00:30]} 26. Rac1 {[%emt 0:00:30]} Re8 {[%emt 0:00:30]} 27. Qf2 {[%emt 0:00:30]} Ba6 {[%emt 0:00:30]} 28. Rxc5 {[%emt 0:00:30]} bxc5 {[%emt 0:00:30]} 29. Rxc5 {[%emt 0:00:30]} Qd6 {[%emt 0:00:30]} 30. Nb5 {[%emt 0:00:30]} Re1+ {[%emt 0:00:30]} 31. Qxe1 {[%emt 0:00:30]} Qxc5+ {[%emt 0:00:30]} 32. Kh1 {[%emt 0:00:30]} Bxb5 {[%emt 0:00:30]} 33. Qg3+ {[%emt 0:00:30]} Qg5 {[%emt 0:00:30]} 34. Qb8+ {[%emt 0:00:30]} Kg7 {[%emt 0:00:30]} 35. Qc7 {[%emt 0:00:30]} h5 {[%emt 0:00:30]} 36. f4 {[%emt 0:00:30]} Qd5 {[%emt 0:00:30]} 37. Qc2 {[%emt 0:00:30]} a3 {[%emt 0:00:30]} 38. Qf2 {[%emt 0:00:30]} Qd3 {[%emt 0:00:30]} 39. Kh2 {[%emt 0:00:30]} Bc4 {[%emt 0:00:30]} 40. h4 {[%emt 0:00:30]} Kh7 {[%emt 0:00:30]} 41. f5 {[%emt 0:00:00]} Bd5 0-1

[Event "75th Argentine Women-ch 2024"]
[Site "Buenos Aires"]
[Date "2024.11.29"]
[Round "9.5"]
[White "Montiel Marin, Micaela Agustina"]
[Black "Nejanky, Maisa"]
[Result "1/2-1/2"]
[ECO "A20"]
[WhiteElo "1880"]
[BlackElo "1928"]
[Annotator "RC"]
[PlyCount "79"]
[EventDate "2024.11.21"]
[EventType "swiss"]
[EventCountry "ARG"]
[SourceTitle "playchess.com"]
[Source "ChessBase"]
[SourceQuality "1"]
[TimeControl "5400+30"]

1. c4 {[%emt 0:00:06]} e5 {[%emt 0:23:51]} 2. g3 {[%emt 0:00:06]} Nf6 {[%emt 0:00:21]} 3. Bg2 {[%emt 0:00:06]} d5 {[%emt 0:03:00]} 4. cxd5 {[%emt 0:00:05]} Nxd5 {[%emt 0:00:04]} 5. Nf3 {[%emt 0:00:05]} Nc6 {[%emt 0:00:26]} 6. O-O {[%emt 0:00:04]} Be6 {[%emt 0:01:10]} 7. b3 {[%emt 0:01:29]} Be7 {[%emt 0:05:53]} 8. Bb2 {[%emt 0:00:08]} f6 {[%emt 0:00:26]} 9. Nc3 {[%emt 0:02:26]} Qd7 {[%emt 0:01:26]} 10. Qc1 {[%emt 0:12:45]} g5 {[%emt 0:10:42]} 11. Rd1 {[%emt 0:09:56]} O-O-O {[%emt 0:04:22]} 12. d4 {[%emt 0:08:52]} Nxc3 {[%emt 0:08:45]} 13. Bxc3 {[%emt 0:02:53]} g4 {[%emt 0:02:17]} 14. d5 {[%emt 0:00:48]} gxf3 {[%emt 0:17:37]} 15. Bxf3 {[%emt 0:00:15]} Nd4 {[%emt 0:05:54]} 16. Bxd4 {[%emt 0:04:47]} exd4 {[%emt 0:00:52]} 17. dxe6 {[%emt 0:00:05]} Qxe6 {[%emt 0:00:22]} 18. Qf4 {[%emt 0:00:10]} Qe5 {[%emt 0:01:14]} 19. Qe4 {[%emt 0:03:16]} Qxe4 {[%emt 0:05:38]} 20. Bxe4 {[%emt 0:00:01]} c5 {[%emt 0:02:09]} 21. Rac1 {[%emt 0:09:47]} Kc7 {[%emt 0:01:01]} 22. a4 {[%emt 0:06:54]} b6 {[%emt 0:03:22]} 23. Kg2 {[%emt 0:10:46]} h6 {[%emt 0:00:31]} 24. e3 {[%emt 0:05:00]} dxe3 {[%emt 0:00:13]} 25. fxe3 {[%emt 0:00:01]} Rhe8 {[%emt 0:00:50]} 26. Kf3 {[%emt 0:00:10]} Bd6 {[%emt 0:00:21]} 27. Rd5 {[%emt 0:02:22]} Re5 {[%emt 0:00:34]} 28. Rcd1 {[%emt 0:00:26]} Rxd5 {[%emt 0:00:23]} 29. Rxd5 {[%emt 0:00:07]} Re8 {[%emt 0:00:10]} 30. Rh5 {[%emt 0:03:08]} Bf8 {[%emt 0:00:21]} 31. Kf4 {[%emt 0:03:14]} Bd6+ {[%emt 0:00:09]} 32. Kf3 {[%emt 0:00:16]} Bf8 {[%emt 0:00:13]} 33. Kf4 {[%emt 0:00:34]} Bd6+ {[%emt 0:01:41]} 34. Kf3 {[%emt 0:00:08]} Bf8 {[%emt 0:00:20]} 35. Kf4 {[%emt 0:03:35]} Bd6+ {[%emt 0:00:07]} 36. Kf3 {[%emt 0:13:39]} Bf8 37. Bd5 Kd6 {[%emt 0:02:15]} 38. e4 {[%emt 0:01:00]} Re5 {[%emt 0:00:30]} 39. Rxe5 {[%emt 0:00:30]} Kxe5 {[%emt 0:00:30]} 40. Bc4 {[%emt 0:00:30]} 1/2-1/2

[Event "75th Argentine Women-ch 2024"]
[Site "Buenos Aires"]
[Date "2024.11.29"]
[Round "9.6"]
[White "Ramirez, Marysol"]
[Black "Gaite, Karen Nerina"]
[Result "1/2-1/2"]
[ECO "D02"]
[WhiteElo "1824"]
[BlackElo "1997"]
[Annotator "RC"]
[PlyCount "52"]
[EventDate "2024.11.21"]
[EventType "swiss"]
[EventCountry "ARG"]
[SourceTitle "playchess.com"]
[Source "ChessBase"]
[SourceQuality "1"]
[TimeControl "5400+30"]

1. d4 {[%emt 0:00:03]} d5 {[%emt 0:00:06]} 2. Bf4 {[%emt 0:00:08]} c5 {[%emt 0:00:06]} 3. e3 {[%emt 0:00:14]} Nc6 {[%emt 1:31:48]} 4. Nf3 {[%emt 0:01:12]} Nf6 {[%emt 0:00:00]} 5. c3 {[%emt 0:00:30]} Qb6 {[%emt 0:01:00]} 6. Qc2 {[%emt 1:31:23]} cxd4 {[%emt 0:00:00]} 7. exd4 {[%emt 0:00:30]} g6 {[%emt 0:01:00]} 8. Bd3 {[%emt 0:00:00]} Bg7 {[%emt 0:00:00]} 9. Nbd2 Bd7 {[%emt 0:01:00]} 10. O-O {[%emt 0:00:00]} Rc8 11. a3 {[%emt 0:02:00]} O-O {[%emt 0:00:00]} 12. Rab1 {[%emt 0:00:00]} Na5 13. Rfe1 {[%emt 0:01:00]} Rfe8 {[%emt 0:00:00]} 14. b3 {[%emt 0:00:00]} Nc6 15. h3 {[%emt 0:01:00]} Ne4 {[%emt 0:00:00]} 16. Nxe4 {[%emt 0:00:00]} dxe4 {[%emt 0:00:00]} 17. Bxe4 {[%emt 0:00:00]} Nxd4 {[%emt 0:00:00]} 18. Nxd4 {[%emt 0:00:00]} Bxd4 {[%emt 0:00:00]} 19. c4 {[%emt 0:02:00]} Bc6 {[%emt 0:00:00]} 20. Be3 {[%emt 0:00:00]} e5 {[%emt 0:00:00]} 21. Bxc6 {[%emt 0:00:00]} Rxc6 {[%emt 0:00:00]} 22. Bxd4 {[%emt 0:00:00]} Qxd4 {[%emt 0:00:00]} 23. Rbd1 {[%emt 0:00:00]} Qc5 {[%emt 0:00:00]} 24. Rd7 {[%emt 0:00:00]} Rc7 {[%emt 0:00:00]} 25. Rxc7 {[%emt 0:00:00]} Qxc7 {[%emt 0:00:00]} 26. Qe4 {[%emt 0:00:00]} Re6 {[%emt 0:00:00]} 1/2-1/2

[Event "75th Argentine Women-ch 2024"]
[Site "Buenos Aires"]
[Date "2024.11.29"]
[Round "9.7"]
[White "Manzoni, Camila"]
[Black "Perez Lascano, Lucila"]
[Result "0-1"]
[ECO "A48"]
[WhiteElo "1521"]
[BlackElo "1593"]
[Annotator "NA RC"]
[PlyCount "116"]
[EventDate "2024.11.21"]
[EventType "swiss"]
[EventCountry "ARG"]
[SourceTitle "playchess.com"]
[Source "ChessBase"]
[SourceQuality "1"]
[TimeControl "5400+30"]

1. d4 {[%emt 0:03:01]} Nf6 {[%emt 0:00:14]} 2. Bf4 {[%emt 0:00:19]} g6 {[%emt 0:00:30]} 3. Nf3 {[%emt 0:00:11]} Bg7 {[%emt 0:00:34]} 4. e3 {[%emt 0:00:25]} O-O {[%emt 0:00:58]} 5. Be2 {[%emt 0:00:17]} d6 {[%emt 0:00:23]} 6. c3 {[%emt 0:01:36]} Nbd7 {[%emt 0:01:05]} 7. h3 {[%emt 0:00:45]} Qe8 {[%emt 0:01:06]} 8. O-O {[%emt 0:02:12]} e5 {[%emt 0:01:56]} 9. dxe5 {[%emt 0:01:30]} dxe5 {[%emt 0:00:17]} 10. Bh2 {[%emt 0:00:47]} e4 {[%emt 0:14:42]} 11. Nfd2 {[%emt 0:02:12]} Ne5 {[%emt 0:16:59]} 12. Nc4 {[%emt 0:02:28]} Nxc4 {[%emt 0:02:33]} 13. Bxc4 {[%emt 0:00:45]} Qc6 {[%emt 0:01:00]} 14. Qb3 {[%emt 0:03:50]} Bd7 {[%emt 0:13:36]} 15. Rd1 {[%emt 0:08:30]} a6 {[%emt 0:01:49]} 16. Nd2 {[%emt 0:08:42]} b5 {[%emt 0:01:33]} 17. Be2 {[%emt 0:00:16]} Be6 {[%emt 0:02:13]} 18. Qc2 {[%emt 0:00:41]} Rad8 {[%emt 0:06:49]} 19. Nb3 {[%emt 0:05:07]} Bc4 {[%emt 0:08:26]} 20. Na5 {[%emt 0:04:32]} Qc5 {[%emt 0:05:17]} 21. Nxc4 {[%emt 0:02:06]} bxc4 {[%emt 0:01:53]} 22. Rd2 {[%emt 0:03:24]} Qc6 {[%emt 0:01:05]} 23. Rad1 {[%emt 0:01:08]} Rxd2 {[%emt 0:10:22]} 24. Rxd2 {[%emt 0:00:30]} Nd7 {[%emt 0:01:05]} 25. Qd1 {[%emt 0:01:05]} Ne5 {[%emt 0:00:38]} 26. Rd8 {[%emt 0:00:38]} Nd3 {[%emt 0:00:36]} 27. Rxf8+ {[%emt 0:01:23]} Bxf8 {[%emt 0:00:25]} 28. Qc2 {[%emt 0:02:30]} Qf6 {[%emt 0:02:12]} 29. Bxd3 {[%emt 0:05:34]} cxd3 {[%emt 0:00:18]} 30. Qd1 {[%emt 0:00:20]} Bd6 {[%emt 0:00:29]} 31. Bxd6 {[%emt 0:00:41]} Qxd6 {[%emt 0:00:05]} 32. Kf1 {[%emt 0:00:26]} c5 {[%emt 0:00:28]} 33. b3 {[%emt 0:00:51]} Qh2 {[%emt 0:00:23]} 34. Ke1 {[%emt 0:01:33]} Qg1+ {[%emt 0:00:12]} 35. Kd2 {[%emt 0:00:08]} Qxf2+ {[%emt 0:00:08]} 36. Kc1 {[%emt 0:00:36]} Qxe3+ {[%emt 0:00:09]} 37. Qd2 {[%emt 0:00:07]} Qg1+ {[%emt 0:01:47]} 38. Kb2 {[%emt 0:01:19]} Qf1 {[%emt 0:00:20]} 39. c4 {[%emt 0:04:33]} e3 {[%emt 0:00:39]} 40. Qc1 {[%emt 0:01:14]} Qxc1+ {[%emt 0:00:30]} 41. Kxc1 {[%emt 0:00:06]} f5 {[%emt 0:00:31]} 42. g3 {[%emt 0:00:55]} g5 {[%emt 0:00:07]} 43. b4 {[%emt 0:00:19]} cxb4 {[%emt 0:00:20]} 44. Kd1 {[%emt 0:00:34]} f4 {[%emt 0:00:13]} 45. gxf4 {[%emt 0:00:20]} gxf4 {[%emt 0:00:05]} 46. c5 {[%emt 0:00:11]} Kf7 {[%emt 0:00:12]} 47. c6 {[%emt 0:00:20]} Ke7 {[%emt 0:00:05]} 48. c7 {[%emt 0:00:05]} Kd7 {[%emt 0:00:04]} 49. c8=Q+ {[%emt 0:00:05]} Kxc8 {[%emt 0:00:07]} 50. Ke1 {[%emt 0:00:03]} d2+ {[%emt 0:00:46]} 51. Ke2 {[%emt 0:00:29]} a5 {[%emt 0:01:07]} 52. h4 {[%emt 0:00:32]} Kd7 {[%emt 0:00:19]} 53. h5 {[%emt 0:00:09]} Kd6 {[%emt 0:00:07]} 54. h6 {[%emt 0:00:04]} Kd5 {[%emt 0:00:12]} 55. Kd1 {[%emt 0:00:16]} Kd4 {[%emt 0:00:10]} 56. Ke2 {[%emt 0:00:07]} Kc3 {[%emt 0:00:12]} 57. Kd1 {[%emt 0:00:14]} Kd3 {[%emt 0:00:23]} 58. a3 {[%emt 0:00:19]} e2# {[%emt 0:08:46]} 0-1

[Event "75th Argentine Women-ch 2024"]
[Site "Buenos Aires"]
[Date "2024.11.29"]
[Round "9.8"]
[White "Amura, Claudia"]
[Black "Macuri, Genesis"]
[Result "1-0"]
[ECO "D00"]
[WhiteElo "2183"]
[BlackElo "1449"]
[Annotator "RC"]
[PlyCount "41"]
[EventDate "2024.11.21"]
[EventType "swiss"]
[EventCountry "ARG"]
[SourceTitle "playchess.com"]
[Source "ChessBase"]
[SourceQuality "1"]
[TimeControl "5400+30"]

1. d4 {[%emt 0:00:04]} d5 {[%emt 0:00:05]} 2. Bg5 {[%emt 0:00:28]} Nf6 {[%emt 0:00:16]} 3. Bxf6 {[%emt 0:00:30]} exf6 {[%emt 0:00:22]} 4. e3 {[%emt 0:00:06]} Nc6 {[%emt 0:00:09]} 5. a3 {[%emt 0:01:21]} Qd7 {[%emt 0:00:39]} 6. c4 {[%emt 0:00:13]} dxc4 {[%emt 0:00:52]} 7. Bxc4 {[%emt 0:00:12]} b6 {[%emt 0:00:30]} 8. Nc3 {[%emt 0:02:51]} Bb7 {[%emt 0:02:07]} 9. Nf3 {[%emt 0:00:33]} O-O-O {[%emt 0:06:07]} 10. h3 {[%emt 0:02:30]} Bd6 {[%emt 0:08:07]} 11. b4 {[%emt 0:00:58]} Rde8 {[%emt 0:08:38]} 12. Qa4 {[%emt 0:01:24]} Qe7 {[%emt 0:07:53]} 13. Bb5 {[%emt 0:02:03]} Nd8 {[%emt 0:13:36]} 14. Bxe8 {[%emt 0:07:59]} Rxe8 {[%emt 0:00:27]} 15. O-O-O {[%emt 0:00:05]} g5 {[%emt 0:02:04]} 16. Nb5 {[%emt 0:01:00]} a6 {[%emt 0:10:08]} 17. Nxd6+ {[%emt 0:02:00]} cxd6 {[%emt 0:01:19]} 18. d5 {[%emt 0:01:29]} Qc7+ {[%emt 0:04:46]} 19. Kb2 {[%emt 0:01:03]} Re7 {[%emt 0:01:48]} 20. Rc1 {[%emt 0:00:17]} Qxc1+ {[%emt 0:00:17]} 21. Rxc1+ {[%emt 0:00:05]} 1-0